lending/lending_fUSD_20250406
["ID","MTS","AMOUNT","RATE_DAILY","PERIOD"]
[357275592,1743972645264,-367.86,0.00027744,2]
[357275593,1743972645273,-500.0,0.00027865,2]
[357275595,1743972645283,-615.73,0.00027892,2]
[357275597,1743972645293,-163.93,0.00027933,2]
[357275599,1743972645302,-174.09,0.00027933,2]
[357275601,1743972645312,-214.84,0.00027934,2]
[357275603,1743972645322,-190.78,0.00027972,2]
[357275605,1743972645331,-150.0,0.00027996,7]
[357275607,1743972645340,-200.0,0.00028038,2]
[357275609,1743972645349,-3692.76,0.00028055,2]
[357275611,1743972645359,-4851.07818046,0.00028166,2]
[357275613,1743972645368,-336.69,0.00028191,2]
[357275615,1743972645378,-849.53,0.000282,2]
[357275617,1743972645387,-992.75,0.00028205,2]
[357275619,1743972645397,-200.0,0.0002821,2]
[357275621,1743972645407,-500.0,0.00028215,3]
[357275623,1743972645416,-4273.35,0.00028237,2]
[357275625,1743972645426,-200.0,0.00028248,2]
[357275627,1743972645436,-2000.0,0.00028303,2]
[357275629,1743972645446,-250.0,0.0002832,2]
[357275631,1743972645455,-166.66,0.00028415,2]
[357275633,1743972645464,-1000.0,0.00028453,2]
[357275635,1743972645474,-2002.05093901,0.00028495,2]
[357275637,1743972645485,-150.0,0.00028552,2]
[357275639,1743972645495,-150.0,0.00028767,2]
[357275641,1743972645504,-871.79,0.00028784,2]
[357275643,1743972645514,-500.0,0.00029,2]
[357275645,1743972645524,-615.73,0.00029286,2]
[357275647,1743972645534,-166.66,0.00029353,2]
[357275649,1743972645543,-214.84,0.00029404,2]
[357275651,1743972645554,-150.0,0.00029922,2]
[357275653,1743972645563,-212.0,0.0003,2]
[357275655,1743972645575,-150.0,0.00030136,2]
[357275657,1743972645585,-166.66,0.00030291,2]
[357275659,1743972645597,-615.73,0.00030681,2]
[357275661,1743972645609,-214.84,0.00030874,2]
[357275663,1743972645620,-550.0,0.00031,2]
[357275665,1743972645630,-871.79,0.00031048,2]
[357275667,1743972645642,-166.66,0.00031229,2]
[357275669,1743972645651,-331.88,0.00031426,2]
[357275671,1743972645661,-637.24,0.00031426,2]
[357275673,1743972645671,-150.99,0.00031426,2]
[357275675,1743972645683,-150.99,0.00031426,2]
[357275677,1743972645694,-499.99,0.00031426,2]
[357275679,1743972645704,-2131.57,0.00031426,2]
[357275681,1743972645713,-1000.0,0.00031446,5]
[357275683,1743972645723,-150.0,0.00031506,2]
[357275685,1743972645735,-1000.0,0.00031614,2]
[357275687,1743972645745,-4851.07818046,0.00031799,2]
[357275689,1743972645755,-615.73,0.00032075,2]
[357275691,1743972645765,-166.66,0.00032167,2]
[357275693,1743972645775,-341.70869542,0.00032332,5]
[357275695,1743972645784,-2174.693,0.00032336,32]
[357275697,1743972645795,-214.84,0.00032344,2]
[357275699,1743972645804,-1000.0,0.00032426,5]
[357275701,1743972645814,-1000.0,0.00032426,5]
[357275703,1743972645824,-1013.24303803,0.00032426,5]
[357275705,1743972645833,-172.77,0.00032646,2]
[357275707,1743972645843,-150.0,0.00032876,2]
[357275709,1743972645852,-2301.13,0.00032891,2]
[357275711,1743972645862,-202.72690438,0.0003293,30]
[357275713,1743972645871,-3039.34995319,0.00033,2]
[357275715,1743972645881,-600.0,0.00033,2]
[357275717,1743972645891,-166.66,0.00033105,2]
[357275719,1743972645900,-871.79,0.00033312,2]
[357275721,1743972645910,-615.73,0.0003347,2]
[357275723,1743972645920,-214.84,0.00033814,2]
[357275726,1743972645930,-350.0,0.0003389,2]
[357275728,1743972645939,-150.0,0.00034246,2]
[357275730,1743972645949,-150.0,0.00034548,10]
[357275732,1743972645959,-152.48,0.00034716,2]
[357275734,1743972645969,-1000.0,0.00034776,2]
[357275736,1743972645980,-1176.26089259,0.00035,40]
[357275739,1743972645990,-151.38136808,0.00035,30]
[357275742,1743972646000,-650.0,0.00035,2]
[357275744,1743972646010,-151.81,0.000351,2]
[357275747,1743972646019,-138546.32366774,0.0003511,30]
[357275751,1743972646033,-98754.85134999,0.0003511,30]
[357275758,1743972646065,-5138.27457557,0.0003511,30]
[357275760,1743972646084,-1601.59999997,0.0003511,30]
[357275772,1743972646147,-3023.66616809,0.0003511,30]
[357275774,1743972646159,-3464.10067198,0.0003511,30]
[357275776,1743972646171,-14871.78292918,0.0003511,30]
[357275844,1743972646748,-4694.70000011,0.00026387,2]
[357275846,1743972646760,-1606.10733536,0.00026387,2]
[357275848,1743972646772,-461.8731,0.00026387,2]
[357275854,1743972646831,-3044.49956453,0.00026387,2]
[357275856,1743972646842,-19016.89607912,0.0003511,30]
[357275858,1743972646859,-540.33952118,0.0003511,30]
[357275883,1743972647114,-508.95889262,0.0003511,30]
[357275885,1743972647127,-275.05631599,0.0003511,30]
[357275887,1743972647139,-2641.91592112,0.0003511,30]
[357275893,1743972647192,-1794.73391535,0.0003511,30]
[357275895,1743972647207,-1452.16136008,0.0003511,30]
[357275915,1743972724606,151.0,0.00039431,30]
[357275916,1743972725259,151.0,0.00039431,30]
[357275917,1743972808610,847.0,0.0003943,120]
[357275918,1743972815562,984.62,0.0003943,30]
[357275919,1743972822569,250.0,0.0003943,120]
[357275920,1743972837945,-250.0,0.00021999,2]
[357275921,1743972837969,-250.0,0.00027467,2]
[357275922,1743972837994,-250.0,0.00032093,2]
[357275923,1743972838018,-262.429949,0.00034762,2]
[357275924,1743972838042,-359.85106064,0.00034937,2]
[357275925,1743972841131,250.0,0.00024199,2]
[357275926,1743972841205,250.0,0.00024733,2]
[357275927,1743972841276,250.0,0.00030251,2]
[357275928,1743972844863,594.79161192,0.0003943,60]
[357275929,1743972904304,1000.0,0.0003943,30]
[357275930,1743972904361,1031.57664207,0.0003943,30]
[357275931,1743972905456,1000.0,0.0003943,30]
[357275932,1743972906611,204.52767305,0.0003943,30]
[357275933,1743972926911,166.83,0.00026849,2]
[357275934,1743972927334,166.83,0.00032646,2]
[357275935,1743972963051,179.55,0.00013699,2]
[357275936,1743972963903,427.408114,0.0003362,2]
[357275938,1743972964329,427.408114,0.00033934,2]
[357275939,1743972964645,427.408114,0.0003399,2]
[357275940,1743972964960,427.408114,0.00034465,2]
[357275941,1743972965270,427.408114,0.0003455,2]
[357275942,1743972965601,427.40811405,0.00034914,2]
[357275944,1743973023753,151.0,0.0003943,30]
[357275945,1743973024401,151.0,0.0003943,30]
[357275946,1743973422877,250.0,0.0003943,120]
[357275947,1743973649479,603.68344,0.0003475,55]
[357275948,1743973787309,177.66,0.00029622,2]
[357275950,1743973832427,-718.5601235,0.00035085,2]
[357275951,1743973837229,-56.50736885,0.00035085,2]
[357275952,1743973837239,-429.15769408,0.0003511,30]
[357275953,1743973837250,-747.88000002,0.0003511,30]
[357275954,1743973837261,-572.07200008,0.0003511,30]
[357275955,1743973837273,-360.3302352,0.0003511,30]
[357275956,1743973837293,-2471.72225195,0.0003511,30]
[357275957,1743973837305,-808.95091405,0.0003511,30]
[357275958,1743973837370,-292.69912069,0.0003511,30]
[357275986,1743973837793,-1528.17812692,0.0003511,30]
[357275988,1743973837806,-7205.30666036,0.0003511,30]
[357275990,1743973837816,-1477.0,0.000352,2]
[357275992,1743973837826,-239.90070708,0.00035416,2]
[357275994,1743973837836,-842.66,0.00035907,2]
[357275996,1743973837845,-320.22,0.00035974,120]
[357275998,1743973837854,-745.94,0.00035974,2]
[357276000,1743973837863,-5556.0,0.000361,3]
[357276002,1743973837873,-154.59,0.00036261,30]
[357276004,1743973837882,-999.99,0.00036261,2]
[357276006,1743973837891,-239.90070708,0.00036386,2]
[357276008,1743973837900,-286.28651251,0.00036553,15]
[357276010,1743973837910,-197.45132369,0.00036553,15]
[357276012,1743973837919,-595.92855094,0.00036553,15]
[357276014,1743973837928,-7392.63,0.00036554,2]
[357276016,1743973837937,-222.22,0.00036554,2]
[357276018,1743973837947,-189.52,0.00036554,2]
[357276020,1743973837958,-930.0,0.00036799,2]
[357276022,1743973837970,-150.0,0.00036841,2]
[357276024,1743973837980,-700.0,0.00037,2]
[357276026,1743973837990,-5556.0,0.00037,5]
[357276028,1743973838000,-360.91,0.00037026,2]
[357276030,1743973838011,-566.05732966,0.000372,103]
[357276032,1743973838023,-200.0,0.00037201,2]
[357276034,1743973838033,-603.68344,0.0003725,60]
[357276036,1743973838043,-1000.0,0.00037284,2]
[357276038,1743973838053,-239.90070708,0.00037356,2]
[357276040,1743973838062,-341.65977487,0.00037417,2]
[357276042,1743973838072,-23900.0,0.00037434,2]
[357276044,1743973838082,-171.85,0.00037482,2]
[357276046,1743973838205,-2381.297,0.00037491,48]
[357276048,1743973838215,-177.495,0.00037491,48]
[357276050,1743973838224,-150.0,0.00037527,7]
[357276052,1743973838234,-150.0,0.00037541,2]
[357276054,1743973838244,-275.26,0.000376,120]
[357276056,1743973838253,-160.08,0.00037729,2]
[357276058,1743973838262,-176.05,0.0003775,2]
[357276060,1743973838273,-500.0,0.00037768,2]
[357276062,1743973838283,-888.79,0.00037772,2]
[357276064,1743973838292,-250.0,0.00037782,2]
[357276066,1743973838302,-814.9,0.00037792,120]
[357276068,1743973838312,-2000.0,0.00037813,2]
[357276070,1743973838321,-1655.9,0.00037821,2]
[357276072,1743973838331,-150.0,0.00037825,2]
[357276074,1743973838339,-150.21,0.00037884,3]
[357276076,1743973838348,-150.08,0.00037894,2]
[357276078,1743973838357,-200.0,0.00037916,2]
[357276080,1743973838366,-1000.0,0.00037926,2]
[357276082,1743973838376,-150.08,0.00037942,2]
[357276084,1743973838385,-150.08,0.00037989,2]
[357276086,1743973838395,-150.08,0.00038036,2]
[357276087,1743973838407,-150.08,0.00038084,2]
[357276089,1743973838416,-473.5708162,0.0003816,5]
[357276091,1743973838426,-842.66,0.00038171,2]
[357276093,1743973838435,-184.61,0.000382,2]
[357276095,1743973838444,-3952.41,0.00038234,2]
[357276097,1743973838453,-194.31920016,0.000384,33]
[357276099,1743973838462,-171.56856378,0.000384,33]
[357276101,1743973838472,-172.77,0.00038443,2]
[357276103,1743973838481,-166.83,0.00038443,2]
[357276105,1743973838491,-250.0,0.00038541,2]
[357276107,1743973838500,-150.0,0.00038809,2]
[357276109,1743973838510,-924.691,0.0003896,2]
[357276111,1743973838522,-224.1397,0.0003896,2]
[357276114,1743973838533,-268.6287,0.0003896,2]
[357276116,1743973838542,-3572.9487,0.0003896,2]
[357276117,1743973838552,-750.0,0.00039,2]
[357276118,1743973838562,-150.0,0.00039016,2]
[357276119,1743973838571,-194.97763208,0.00039039,15]
[357276120,1743973838581,-257.1343499,0.00039039,15]
[357276121,1743973838590,-61851.65409896,0.0003904,2]
[357276122,1743973838599,-592.29137335,0.00039073,5]
[357276123,1743973838610,-157.21,0.00039188,2]
[357276124,1743973838619,-320.22,0.00039244,120]
[357276125,1743973838628,-2356.711796,0.000393,29]
[357276126,1743973838637,-6547.54045369,0.0003933,2]
[357276127,1743973838647,-8487.1456,0.0003933,2]
[357276128,1743973838656,-1437.4168,0.0003933,2]
[357276129,1743973838665,-891.2849,0.0003933,2]
[357276130,1743973838674,-12192.8756,0.0003933,2]
[357276131,1743973838684,-271.57619722,0.000394,100]
[357276132,1743973838693,-1086.95971035,0.00039413,30]
[357276133,1743973838703,-202.59119274,0.00039429,2]
[357276134,1743973838713,-395.25346446,0.0003943,2]
[357276135,1743973838723,-14562.69130905,0.0003943,2]
[357276136,1743973838732,-1942.15027669,0.0003943,2]
[357276138,1743973838742,-151.03612503,0.0003943,2]
[357276139,1743973838751,-978.42394289,0.0003943,15]
[357276140,1743973838760,-1277.83904334,0.0003943,4]
[357276141,1743973838769,-706.34025553,0.0003943,7]
[357276143,1743973838780,-1507.74670341,0.0003943,4]
[357276145,1743973838790,-150.0,0.0003943,2]
[357276147,1743973838799,-2500.0,0.0003969,2]
[357276149,1743973838809,-603.68344,0.0003975,66]
[357276152,1743973838819,-1301.6084,0.0003979,2]
[357276154,1743973838828,-3667.9031,0.0003979,2]
[357276155,1743973838837,-36045.8581,0.0003979,2]
[357276157,1743973838847,-150.0,0.00039794,2]
[357276159,1743973838856,-628.7015,0.00039861,2]
[357276161,1743973838865,-833.4141,0.0003989,120]
[357276163,1743973838874,-1405.5238,0.0003989,2]
[357276165,1743973838883,-11257.1768,0.0003989,2]
[357276167,1743973838891,-1545.6713,0.0003989,2]
[357276169,1743973838901,-165.6138,0.0003989,30]
[357276171,1743973838910,-651.8745,0.0003989,2]
[357276173,1743973838920,-500.0,0.0003989,2]
[357276175,1743973838929,-530.69879966,0.00039899,50]
[357276177,1743973838938,-1954.13771577,0.000399,15]
[357276179,1743973838947,-501.47327578,0.00039973,5]
[357276181,1743973838957,-500.0,0.00039973,5]
[357276183,1743973838969,-3013.15095114,0.00039989,2]
[357276185,1743973838978,-49728.9478445,0.0003999,3]
[357276187,1743973838987,-3203.66703349,0.0004,10]
[357276189,1743973838996,-18226.90897359,0.0004,30]
[357276191,1743973839006,-1093.34049419,0.0004,15]
[357276193,1743973839015,-168565.21013656,0.0004,30]
[357276195,1743973839027,-159.9547802,0.0004,2]
[357276197,1743973839036,-1175.12122551,0.0004,12]
[357276199,1743973839048,-566.05732965,0.00040039,120]
[357276201,1743973839057,-176.05,0.00040266,2]
[357276203,1743973839067,-3536.5,0.00040382,5]
[357276205,1743973839075,-150.0,0.00040385,2]
[357276207,1743973839084,-842.66,0.00040435,2]
[357276209,1743973839093,-150.0,0.00040778,2]
[357276211,1743973839103,-6547.54045365,0.00040854,15]
[357276213,1743973839111,-7192.276155,0.00041,5]
[357276214,1743973839120,-800.0,0.00041,2]
[357276217,1743973839130,-193.0,0.00041,14]
[357276218,1743973839139,-2506.0,0.00041085,5]
[357276220,1743973839148,-16576.3159482,0.00041086,3]
[357276222,1743973839157,-179.55,0.00041096,2]
[357276224,1743973839167,-276.36033243,0.00041096,2]
[357276226,1743973839176,-500.0,0.00041096,31]
[357276228,1743973839185,-500.0,0.00041096,31]
[357276230,1743973839194,-500.0,0.00041096,31]
[357276232,1743973839204,-500.0,0.00041096,31]
[357276234,1743973839213,-500.0,0.00041096,31]
[357276236,1743973839222,-500.0,0.00041096,31]
[357276238,1743973839231,-500.0,0.00041096,31]
[357276240,1743973839240,-500.0,0.00041096,31]
[357276242,1743973839250,-500.0,0.00041096,31]
[357276245,1743973839262,-171.85,0.0004123,2]
[357276246,1743973839272,-1954.13771571,0.00041361,15]
[357276248,1743973839281,-150.0,0.00041762,2]
[357276251,1743973839291,-1000.0,0.00041945,2]
[357276253,1743973839300,-151.65,0.0004199,2]
[357276254,1743973839309,-1000.0,0.00042,6]
[357276256,1743973839318,-1000.0,0.00042,5]
[357276258,1743973839328,-1189.0,0.00042,7]
[357276261,1743973839338,-1000.0,0.00042,5]
[357276262,1743973839347,-889.0,0.00042,7]
[357276264,1743973839357,-1000.0,0.00042,5]
[357276267,1743973839366,-466.86,0.00042,120]
[357276268,1743973839375,-223.29,0.00042,120]
[357276270,1743973839385,-16576.3159482,0.0004224,3]
[357276272,1743973839394,-603.68345,0.0004225,71]
[357276274,1743973839403,-814.9,0.0004227,120]
[357276276,1743973839413,-275.26,0.000423,120]
[357276278,1743973839421,-6547.54045365,0.00042379,15]
[357276280,1743973839431,-390.0,0.000425,120]
[357276282,1743973839440,-1092.8648262,0.000425,60]
[357276284,1743973839449,-152.48,0.00042583,2]
[357276286,1743973839459,-842.66,0.00042699,2]
[357276288,1743973839468,-150.0,0.00042746,2]
[357276290,1743973839477,-176.05,0.00042783,2]
[357276293,1743973839487,-1954.13771571,0.00042822,15]
[357276295,1743973839497,-5547.54635335,0.00042825,2]
[357276296,1743973839505,-850.0,0.00043,2]
[357276299,1743973839515,-1990.0,0.00043,7]
[357276300,1743973839526,-193.0,0.00043151,90]
[357276302,1743973839535,-1257.0,0.000433,7]
[357276304,1743973839544,-150.3,0.00043322,2]
[357276306,1743973839553,-150.3,0.00043344,2]
[357276308,1743973839562,-150.3,0.00043366,2]
[357276310,1743973839572,-150.3,0.00043387,2]
[357276312,1743973839581,-150.3,0.00043409,2]
[357276314,1743973839590,-150.3,0.00043431,2]
[357276316,1743973839600,-150.3,0.00043452,2]
[357276318,1743973839609,-150.3,0.00043474,2]
[357276320,1743973839618,-150.3,0.00043496,2]
[357276322,1743973839627,-150.3,0.00043517,2]
[357276324,1743973839636,-150.3,0.00043539,2]
[357276326,1743973839647,-2385.78,0.00043602,2]
[357276328,1743973839656,-150.0,0.0004373,2]
[357276330,1743973839665,-297.87200981,0.00043736,20]
[357276332,1743973839674,-30977.51203148,0.00043826,3]
[357276380,1743973840158,-2175.11986482,0.00043826,3]
[357276382,1743973840167,-28625.44258082,0.00043826,3]
[357276384,1743973840181,-2587.31247087,0.00043826,3]
[357276387,1743973840194,-3449.19941261,0.00043826,3]
[357276389,1743973840203,-335.96414195,0.00043836,60]
[357276391,1743973840213,-631.46114616,0.00043836,120]
[357276393,1743973840222,-67.96160428,0.00043836,120]
[357276395,1743973840236,-563.49954188,0.00043836,120]
[357276397,1743973840245,-631.46114616,0.00043836,120]
[357276399,1743973840254,-95.50979998,0.00043836,120]
[357276402,1743973840267,-476.02721515,0.00043836,120]
[357276405,1743973840293,-59.92413103,0.00043836,120]
[357276407,1743973840302,-631.46114616,0.00043836,120]
[357276410,1743973840311,-631.46114616,0.00043836,120]
[357276412,1743973840320,-342.60246346,0.00043836,120]
[357276414,1743973840332,-288.8586827,0.00043836,120]
[357276416,1743973840342,-443.72543739,0.00043836,120]
[357276418,1743973840353,-187.73570877,0.00043836,120]
[357276421,1743973840362,-631.46114616,0.00043836,120]
[357276422,1743973840371,-631.46114616,0.00043836,120]
[357276424,1743973840380,-631.46114616,0.00043836,120]
[357276426,1743973840390,-631.46114616,0.00043836,120]
[357276429,1743973840399,-631.46114616,0.00043836,120]
[357276431,1743973840409,-631.46114616,0.00043836,120]
[357276433,1743973840419,-631.46114616,0.00043836,120]
[357276435,1743973840429,-406.20698811,0.00043836,120]
[357276438,1743973840450,-225.25415805,0.00043836,120]
[357276440,1743973840460,-631.46114616,0.00043836,120]
[357276442,1743973840469,-631.46114616,0.00043836,120]
[357276444,1743973840479,-631.46114616,0.00043836,120]
[357276446,1743973840490,-631.46114616,0.00043836,120]
[357276448,1743973840499,-631.46114616,0.00043836,120]
[357276450,1743973840509,-631.46114616,0.00043836,120]
[357276452,1743973840519,-631.46114616,0.00043836,120]
[357276454,1743973840530,-631.46114616,0.00043836,120]
[357276456,1743973840540,-631.46114616,0.00043836,120]
[357276458,1743973840549,-631.46114616,0.00043836,120]
[357276460,1743973840558,-631.46114616,0.00043836,120]
[357276462,1743973840569,-631.46114616,0.00043836,120]
[357276464,1743973840579,-631.46114616,0.00043836,120]
[357276466,1743973840589,-631.46114616,0.00043836,120]
[357276468,1743973840598,-631.46114616,0.00043836,120]
[357276470,1743973840607,-631.46114616,0.00043836,120]
[357276472,1743973840617,-631.46114616,0.00043836,120]
[357276474,1743973840626,-631.46114616,0.00043836,120]
[357276476,1743973840636,-538.57066226,0.00043836,120]
[357276510,1743973840986,-300.0,0.00038,2]
[357276512,1743973840995,-300.0,0.0003838,2]
[357276514,1743973841006,-300.0,0.0003876,2]
[357276516,1743973841015,-300.0,0.0003914,2]
[357276518,1743973841026,-92.8904839,0.00043836,120]
[357276520,1743973841035,-631.46114616,0.00043836,120]
[357276522,1743973841045,-631.46114616,0.00043836,120]
[357276524,1743973841055,-631.46114616,0.00043836,120]
[357276526,1743973841064,-364.5494363,0.00043836,120]
[357276535,1743973841149,-266.91170986,0.00043836,120]
[357276537,1743973841159,-270.09883636,0.00043836,120]
[357276550,1743973841272,-361.3623098,0.00043836,120]
[357276552,1743973841282,-442.73044962,0.00043836,120]
[357276554,1743973841293,-188.73069654,0.00043836,120]
[357276556,1743973841303,-202.40650342,0.00043836,120]
[357276558,1743973841314,-429.05464274,0.00043836,120]
[357276560,1743973841323,-201.71895728,0.00043836,120]
[357276744,1743973844210,-1916.10067894,0.00042782,7]
[357276745,1743973846698,-1319.89932106,0.00042782,7]
[357276746,1743973846708,-429.74218888,0.00043836,120]
[357276747,1743973846719,-631.46114616,0.00043836,120]
[357276748,1743973846729,-333.13636087,0.00043836,120]
[357276749,1743973846742,-298.32478529,0.00043836,120]
[357276750,1743973846751,-337.56204323,0.00043836,120]
[357276760,1743973983838,154.58,0.00026849,2]
[357276761,1743973984539,154.58,0.00032968,2]
[357276763,1743974601298,250.5871632,0.00039422,120]
[357276764,1743974630973,382.937937,0.00039422,30]
[357276765,1743974642996,594.79161192,0.00039422,60]
[357276766,1743974644514,984.62,0.00039422,60]
[357276767,1743974644593,254.0,0.00039422,31]
[357276768,1743974644707,253.0,0.00039422,31]
[357276769,1743974656478,853.09126183,0.00039422,30]
[357276770,1743974673617,847.0,0.00039422,120]
[357276771,1743974681625,250.0,0.00039422,120]
[357276772,1743974701873,220.0,0.00033,120]
[357276773,1743974708996,1099.93006184,0.00039422,90]
[357276777,1743974710217,153.43877127,0.00039422,120]
[357276778,1743974711562,999.999992,0.00039422,120]
[357276779,1743974713318,775.56920886,0.00039422,30]
[357276780,1743974713380,778.51629297,0.00039422,91]
[357276781,1743974714289,713.39343543,0.00039422,30]
[357276782,1743974715504,959.25617683,0.00039422,30]
[357276783,1743974720682,913.59821338,0.00039422,120]
[357276784,1743974720801,3027.9868677,9e-05,2]
[357276785,1743974721366,2056.70208677,0.00039422,120]
[357276786,1743974722309,847.0,0.00039422,120]
[357276787,1743974722382,2023.82398053,0.00039422,120]
[357276788,1743974725352,1150.89060986,0.00039422,30]
[357276789,1743974727081,990.14780147,0.000108,2]
[357276790,1743974727589,224.0,0.00039422,120]
[357276791,1743974727798,1182.10391217,0.00039422,30]
[357276792,1743974729428,677.65068653,0.00011,2]
[357276793,1743974729613,984.62,0.00039422,30]
[357276794,1743974729680,550.111455,0.00039422,30]
[357276795,1743974735236,204.52767305,0.00039422,30]
[357276796,1743974737358,259.71691327,0.00039422,30]
[357276797,1743974737846,251.97338304,8e-05,2]
[357276798,1743974739098,288.61551145,0.00039422,120]
[357276799,1743974741250,1323.62387963,0.00039422,120]
[357276800,1743974743104,979.58535734,0.00039422,120]
[357276801,1743974743603,250.0,0.00039422,120]
[357276802,1743974745397,1603.1005366,0.00039422,120]
[357276803,1743974745806,150.30411952,0.00039422,120]
[357276804,1743974745869,171.350093,0.00039422,30]
[357276805,1743974748585,359.26124983,0.00039422,120]
[357276806,1743974754789,253.038452,0.00039422,30]
[357276807,1743974758343,2064.68509628,0.00039422,30]
[357276810,1743974763059,769.62437683,0.00039422,90]
[357276811,1743974765756,156.47422291,0.00039422,120]
[357276812,1743974770622,824.82444922,0.00039422,120]
[357276813,1743974771891,317.12048806,0.00039422,60]
[357276814,1743974775587,427.76614065,0.00039422,30]
[357276815,1743974776891,1983.50315228,0.00039422,120]
[357276816,1743974779213,208.63908605,0.00039422,120]
[357276817,1743974783382,224.67909699,0.00039422,120]
[357276818,1743974785030,1914.03129003,0.00039422,120]
[357276819,1743974790589,1280.43775736,0.00039422,120]
[357276820,1743974793305,1485.4278476,0.00015,2]
[357276821,1743974793972,305.56042954,0.00039422,60]
[357276822,1743974816678,216.50840444,0.00039422,120]
[357276823,1743974823813,254.0,0.00039422,31]
[357276824,1743974823872,1911.36839321,0.00039422,120]
[357276825,1743974824118,151.0,0.00039422,30]
[357276826,1743974824218,253.0,0.00039422,31]
[357276827,1743974824294,1390.17252242,0.00039422,120]
[357276828,1743974824776,151.0,0.00039422,30]
[357276829,1743974825458,151.0,0.00039422,30]
[357276830,1743974826112,151.0,0.00039422,30]
[357276831,1743974826768,151.0,0.00039422,30]
[357276832,1743974828032,151.0,0.00039422,30]
[357276833,1743974828670,151.0,0.00039422,30]
[357276834,1743974829289,151.0,0.00039422,30]
[357276835,1743974829348,235.97802667,0.00039422,30]
[357276836,1743974829927,151.0,0.00039422,30]
[357276837,1743974830556,151.0,0.00039422,30]
[357276838,1743974831197,151.0,0.00039422,30]
[357276839,1743974831836,151.0,0.00039422,30]
[357276840,1743974832476,151.0,0.00039422,30]
[357276841,1743974833104,151.0,0.00039422,30]
[357276842,1743974834023,151.0,0.00039422,30]
[357276843,1743974834388,151.0,0.00039422,30]
[357276844,1743974834796,1566.81341366,0.00015,2]
[357276845,1743974834822,3567.08695427,0.00015,2]
[357276846,1743974835005,151.0,0.00039422,30]
[357276847,1743974835615,151.0,0.00039422,30]
[357276848,1743974836879,151.0,0.00039422,30]
[357276849,1743974837067,508.58454696,0.00039422,120]
[357276850,1743974837584,151.0,0.00039422,30]
[357276851,1743974838483,6432.91304573,0.00015,2]
[357276852,1743974838505,10000.0,0.00015,2]
[357276853,1743974838525,100.47922413,0.00015,2]
[357276855,1743974840077,151.0,0.00039422,30]
[357276856,1743974840713,156.587,0.00039422,30]
[357276867,1743974841344,162.380719,0.00039422,30]
[357276898,1743974841998,168.3888056,0.00039422,30]
[357276924,1743974842633,174.61919141,0.00039422,30]
[357276943,1743974843289,181.08010149,0.00039422,30]
[357276951,1743974843934,187.78006525,0.00039422,30]
[357276952,1743974844660,194.72792766,0.00039422,30]
[357276953,1743974845227,201.93286099,0.00039422,30]
[357276954,1743974845827,209.40437684,0.00039422,30]
[357276955,1743974846476,217.15233878,0.00039422,30]
[357276956,1743974847070,225.18697532,0.00039422,30]
[357276957,1743974847704,225.18697532,0.00039422,30]
[357276958,1743974850188,500.0,0.00039422,30]
[357276959,1743974850810,518.5,0.00039422,30]
[357276960,1743974851514,537.6845,0.00039422,30]
[357276961,1743974852140,557.5788265,0.00039422,30]
[357276962,1743974852773,578.20924308,0.00039422,30]
[357276963,1743974853412,599.60298507,0.00039422,30]
[357276964,1743974854058,621.78829552,0.00039422,30]
[357276965,1743974855041,644.79446246,0.00039422,30]